[Event "Božićni turnir u VaraždinskimToplicama 26.12.2025."]
[Site "Varazdinske Toplice, Croatia"]
[Date "2025.12.26"]
[Round "1.13"]
[White "Milinovic, Ivan"]
[Black "Sardi, Darko"]
[Result "0-1"]
[TimeControl "10"]
[WhiteFideId "14524244"]
[BlackFideId "14511100"]
[WhiteElo "1599"]
[BlackElo "1905"]

1. e4 {[%clk 00:08:53]} {[%emt 00:01:05]} Nf6 {[%clk 00:09:57]} {[%emt
00:00:04]} 2. Nc3 {[%clk 00:08:46]} {[%emt 00:00:07]} d5 {[%clk 00:09:56]} 3.
exd5 Nxd5 {[%clk 00:09:54]} 4. Nxd5 {[%clk 00:08:39]} {[%emt 00:00:03]} Qxd5
{[%clk 00:09:53]} {[%emt 00:00:01]} 5. b3 {[%clk 00:08:27]} {[%emt 00:00:13]}
e5 {[%clk 00:09:52]} {[%emt 00:00:01]} 6. Bb2 {[%clk 00:08:22]} {[%emt
00:00:05]} Nc6 {[%clk 00:09:49]} {[%emt 00:00:03]} 7. Nf3 {[%clk 00:08:19]}
{[%emt 00:00:03]} f6 {[%clk 00:09:42]} {[%emt 00:00:07]} 8. Bc4 {[%clk
00:08:16]} {[%emt 00:00:03]} Qe4+ {[%clk 00:09:32]} {[%emt 00:00:09]} 9. Be2
{[%clk 00:08:06]} {[%emt 00:00:11]} Bf5 {[%clk 00:09:24]} {[%emt 00:00:08]} 10.
d3 {[%clk 00:07:56]} {[%emt 00:00:10]} Qd5 {[%clk 00:09:22]} {[%emt 00:00:02]}
11. O-O {[%clk 00:07:48]} {[%emt 00:00:11]} O-O-O {[%clk 00:09:17]} {[%emt
00:00:02]} 12. Nh4 {[%clk 00:07:35]} {[%emt 00:00:13]} Be6 {[%clk 00:09:15]}
{[%emt 00:00:02]} 13. c4 {[%clk 00:07:22]} {[%emt 00:00:13]} Qd7 {[%clk
00:09:11]} {[%emt 00:00:04]} 14. Qc2 {[%clk 00:07:06]} {[%emt 00:00:15]} g5
{[%clk 00:09:07]} {[%emt 00:00:05]} 15. Nf3 {[%clk 00:07:01]} {[%emt 00:00:04]}
h5 {[%clk 00:08:56]} {[%emt 00:00:12]} 16. Rfd1 {[%clk 00:06:52]} {[%emt
00:00:09]} h4 {[%clk 00:08:51]} {[%emt 00:00:05]} 17. h3 {[%clk 00:06:42]}
{[%emt 00:00:09]} g4 {[%clk 00:08:49]} {[%emt 00:00:03]} 18. hxg4 {[%clk
00:06:29]} {[%emt 00:00:13]} Bxg4 {[%clk 00:08:47]} {[%emt 00:00:02]} 19. Nh2
{[%clk 00:06:21]} {[%emt 00:00:08]} Bf5 {[%clk 00:08:30]} {[%emt 00:00:18]} 20.
f4 {[%clk 00:05:55]} {[%emt 00:00:25]} Nd4 {[%clk 00:08:17]} {[%emt 00:00:13]}
21. Bxd4 {[%clk 00:05:27]} {[%emt 00:00:28]} Qxd4+ {[%clk 00:08:16]} {[%emt
00:00:02]} 22. Kh1 {[%clk 00:05:18]} {[%emt 00:00:08]} exf4 {[%clk 00:07:35]}
{[%emt 00:00:41]} 23. Nf3 {[%clk 00:05:08]} {[%emt 00:00:09]} Qe3 {[%emt
00:00:11]} 24. Qc3 {[%clk 00:04:44]} {[%emt 00:00:22]} Be7 {[%clk 00:06:58]}
{[%emt 00:00:30]} 25. Bf1 {[%clk 00:04:02]} {[%emt 00:00:41]} h3 {[%clk
00:06:55]} {[%emt 00:00:03]} 26. Re1 {[%clk 00:03:49]} {[%emt 00:00:13]} hxg2+
{[%clk 00:06:53]} {[%emt 00:00:02]} 27. Kxg2 {[%clk 00:03:46]} {[%emt
00:00:03]} Rdg8+ {[%clk 00:06:50]} {[%emt 00:00:03]} 0-1

[Event "Božićni turnir u VaraždinskimToplicama 26.12.2025."]
[Site "Varazdinske Toplice, Croatia"]
[Date "2025.12.26"]
[Round "1.14"]
[White "Hostnjak, Hrvoje"]
[Black "Vidovic, Bojan"]
[Result "1/2-1/2"]
[TimeControl "10"]
[WhiteFideId "14551470"]
[BlackFideId "14610060"]
[WhiteElo "1704"]
[BlackElo "1476"]

1. e4 {[%clk 00:09:58]} {[%emt 00:00:01]} e5 {[%clk 00:09:59]} {[%emt
00:00:02]} 2. Nc3 {[%clk 00:09:57]} Bc5 {[%clk 00:09:53]} {[%emt 00:00:05]} 3.
g3 {[%clk 00:09:55]} {[%emt 00:00:03]} Nf6 {[%clk 00:09:46]} {[%emt 00:00:07]}
4. Bg2 {[%clk 00:09:53]} {[%emt 00:00:02]} a6 {[%clk 00:09:34]} {[%emt
00:00:12]} 5. Nge2 {[%clk 00:09:51]} {[%emt 00:00:02]} Nc6 {[%clk 00:09:28]}
{[%emt 00:00:06]} 6. O-O {[%clk 00:09:48]} {[%emt 00:00:02]} O-O {[%clk
00:09:25]} {[%emt 00:00:04]} 7. d3 {[%clk 00:09:42]} {[%emt 00:00:06]} h6
{[%clk 00:09:21]} {[%emt 00:00:04]} 8. h3 {[%clk 00:09:40]} {[%emt 00:00:02]}
d6 {[%clk 00:09:12]} {[%emt 00:00:09]} 9. Kh2 {[%clk 00:09:36]} {[%emt
00:00:04]} Nh7 {[%clk 00:08:42]} {[%emt 00:00:30]} 10. f4 {[%clk 00:09:01]}
{[%emt 00:00:34]} f6 {[%clk 00:08:25]} {[%emt 00:00:18]} 11. b3 {[%clk
00:08:26]} {[%emt 00:00:36]} Nd4 {[%clk 00:08:21]} {[%emt 00:00:04]} 12. Bb2
{[%clk 00:08:18]} {[%emt 00:00:07]} Nxe2 {[%clk 00:08:07]} {[%emt 00:00:15]} 13.
Nxe2 {[%clk 00:08:15]} {[%emt 00:00:02]} Bd7 {[%clk 00:07:53]} {[%emt
00:00:14]} 14. d4 {[%clk 00:08:07]} {[%emt 00:00:08]} Ba7 {[%clk 00:07:34]}
{[%emt 00:00:19]} 15. fxe5 {[%clk 00:08:03]} {[%emt 00:00:05]} fxe5 {[%clk
00:07:10]} {[%emt 00:00:23]} 16. dxe5 {[%clk 00:08:00]} {[%emt 00:00:03]} Bc6
{[%clk 00:06:43]} {[%emt 00:00:28]} 17. exd6 {[%clk 00:07:48]} {[%emt
00:00:11]} Qxd6 {[%clk 00:06:34]} {[%emt 00:00:09]} 18. Qxd6 {[%clk 00:06:59]}
{[%emt 00:00:50]} cxd6 {[%clk 00:06:32]} {[%emt 00:00:01]} 19. Rad1 {[%clk
00:06:26]} {[%emt 00:00:33]} Rxf1 {[%clk 00:06:16]} {[%emt 00:00:17]} 20. Rxf1
{[%clk 00:06:23]} {[%emt 00:00:03]} Rf8 {[%clk 00:06:13]} {[%emt 00:00:03]} 21.
Rxf8+ {[%clk 00:06:02]} {[%emt 00:00:21]} Kxf8 {[%clk 00:06:08]} {[%emt
00:00:05]} 22. Nf4 {[%clk 00:05:51]} {[%emt 00:00:10]} Kf7 {[%clk 00:05:21]}
{[%emt 00:00:48]} 23. Nd5 {[%clk 00:05:01]} {[%emt 00:00:50]} Nf6 {[%clk
00:04:50]} {[%emt 00:00:31]} 24. g4 {[%clk 00:04:14]} {[%emt 00:00:46]} b5
{[%clk 00:04:14]} {[%emt 00:00:37]} 25. Kg3 {[%clk 00:03:29]} {[%emt 00:00:44]}
Bg1 {[%clk 00:03:58]} {[%emt 00:00:16]} 26. h4 {[%clk 00:03:03]} {[%emt
00:00:27]} Nxd5 {[%clk 00:03:47]} {[%emt 00:00:11]} 27. exd5 {[%clk 00:03:01]}
{[%emt 00:00:02]} Bd7 {[%clk 00:03:46]} {[%emt 00:00:01]} 28. Be4 {[%clk
00:02:19]} {[%emt 00:00:41]} Be3 {[%clk 00:03:40]} {[%emt 00:00:07]} 29. Kf3
{[%clk 00:02:14]} {[%emt 00:00:05]} Bd2 {[%clk 00:03:37]} {[%emt 00:00:03]} 30.
c4 {[%clk 00:01:58]} {[%emt 00:00:16]} g5 {[%clk 00:03:25]} {[%emt 00:00:12]}
31. hxg5 {[%clk 00:01:48]} {[%emt 00:00:09]} hxg5 {[%clk 00:03:25]} {[%emt
00:00:01]} 32. Bd4 {[%clk 00:01:33]} {[%emt 00:00:16]} Bf4 {[%clk 00:03:12]}
{[%emt 00:00:12]} 33. c5 {[%clk 00:01:28]} {[%emt 00:00:05]} dxc5 34. Bxc5
{[%clk 00:01:27]} Kf6 {[%clk 00:02:53]} {[%emt 00:00:14]} 35. a3 {[%clk
00:01:04]} {[%emt 00:00:22]} Ke5 {[%clk 00:02:36]} {[%emt 00:00:17]} 36. d6
{[%clk 00:00:51]} {[%emt 00:00:13]} Kf6 {[%clk 00:02:26]} {[%emt 00:00:10]} 37.
Bb7 {[%clk 00:00:47]} {[%emt 00:00:04]} a5 {[%clk 00:02:21]} {[%emt 00:00:05]}
38. Bb6 {[%clk 00:00:42]} {[%emt 00:00:05]} a4 {[%clk 00:02:18]} {[%emt
00:00:03]} 39. bxa4 {[%clk 00:00:39]} {[%emt 00:00:03]} bxa4 {[%clk 00:02:17]}
{[%emt 00:00:02]} 40. Bc5 {[%clk 00:00:36]} {[%emt 00:00:02]} Ke6 {[%clk
00:02:09]} {[%emt 00:00:07]} 41. Ba6 {[%clk 00:00:35]} {[%emt 00:00:01]} Bxd6
{[%clk 00:02:02]} {[%emt 00:00:07]} 42. Bxd6 {[%clk 00:00:35]} Kxd6 {[%clk
00:02:01]} {[%emt 00:00:01]} 43. Bd3 {[%clk 00:00:24]} {[%emt 00:00:11]} Kc5
{[%clk 00:01:59]} {[%emt 00:00:02]} 44. Bf5 {[%clk 00:00:20]} {[%emt 00:00:04]}
Bc6+ {[%clk 00:01:54]} {[%emt 00:00:05]} 45. Ke3 {[%clk 00:00:18]} {[%emt
00:00:01]} Kc4 {[%clk 00:01:51]} {[%emt 00:00:03]} 46. Be6+ {[%clk 00:00:17]}
{[%emt 00:00:01]} Kc3 {[%clk 00:01:48]} {[%emt 00:00:03]} 47. Ke2 {[%clk
00:00:13]} {[%emt 00:00:05]} Kb2 {[%clk 00:01:45]} {[%emt 00:00:03]} 48. Kd3
{[%clk 00:00:11]} {[%emt 00:00:02]} Kxa3 {[%clk 00:01:44]} {[%emt 00:00:01]} 49.
Kc3 {[%clk 00:00:11]} 1/2-1/2

[Event "Božićni turnir u VaraždinskimToplicama 26.12.2025."]
[Site "Varazdinske Toplice, Croatia"]
[Date "2025.12.26"]
[Round "2.1"]
[White "Segovic, Goran"]
[Black "Matkun, Josip"]
[Result "1-0"]
[TimeControl "10"]
[WhiteFideId "14508842"]
[BlackFideId "14513765"]
[WhiteElo "2324"]
[BlackElo "1832"]

1. e4 {[%clk 00:09:57]} {[%emt 00:00:02]} c5 {[%clk 00:09:58]} {[%emt
00:00:02]} 2. Nf3 {[%clk 00:09:55]} {[%emt 00:00:02]} d6 {[%clk 00:09:57]} 3.
d4 {[%clk 00:09:54]} {[%emt 00:00:03]} cxd4 {[%clk 00:09:55]} {[%emt 00:00:01]}
4. Nxd4 {[%clk 00:09:53]} {[%emt 00:00:02]} Nf6 {[%clk 00:09:54]} {[%emt
00:00:01]} 5. Nc3 {[%clk 00:09:52]} a6 {[%clk 00:09:53]} {[%emt 00:00:01]} 6.
h3 {[%clk 00:09:51]} e6 {[%clk 00:09:52]} 7. g4 {[%clk 00:09:49]} {[%emt
00:00:03]} h6 {[%clk 00:09:51]} {[%emt 00:00:01]} 8. Bg2 {[%clk 00:09:47]}
{[%emt 00:00:02]} Be7 {[%clk 00:09:47]} {[%emt 00:00:03]} 9. Be3 {[%clk
00:09:46]} {[%emt 00:00:02]} Qc7 {[%clk 00:09:46]} {[%emt 00:00:01]} 10. Qd2
{[%clk 00:09:44]} {[%emt 00:00:02]} Nc6 {[%clk 00:09:24]} {[%emt 00:00:22]} 11.
Nxc6 {[%clk 00:09:34]} {[%emt 00:00:09]} bxc6 {[%clk 00:09:23]} {[%emt
00:00:01]} 12. f4 {[%clk 00:09:25]} {[%emt 00:00:10]} Nd7 {[%clk 00:09:15]}
{[%emt 00:00:09]} 13. O-O-O {[%clk 00:09:17]} {[%emt 00:00:07]} Rb8 {[%clk
00:09:13]} {[%emt 00:00:02]} 14. h4 {[%clk 00:09:01]} {[%emt 00:00:16]} Nb6
{[%clk 00:09:04]} {[%emt 00:00:09]} 15. b3 {[%clk 00:08:55]} {[%emt 00:00:05]}
a5 {[%clk 00:08:47]} {[%emt 00:00:18]} 16. g5 {[%clk 00:08:53]} {[%emt
00:00:02]} d5 {[%clk 00:08:30]} {[%emt 00:00:17]} 17. Bd4 {[%clk 00:08:21]}
{[%emt 00:00:31]} Nc4 {[%clk 00:07:12]} {[%emt 00:01:19]} 18. Qf2 {[%clk
00:08:16]} {[%emt 00:00:05]} e5 {[%clk 00:06:10]} {[%emt 00:01:02]} 19. fxe5
{[%clk 00:08:05]} {[%emt 00:00:11]} Nxe5 {[%clk 00:06:06]} {[%emt 00:00:04]} 20.
exd5 {[%clk 00:07:50]} {[%emt 00:00:15]} c5 {[%clk 00:05:29]} {[%emt 00:00:37]}
21. d6 {[%clk 00:07:23]} {[%emt 00:00:26]} Bxd6 {[%clk 00:04:57]} {[%emt
00:00:32]} 22. Nd5 {[%clk 00:07:10]} {[%emt 00:00:13]} Qd7 {[%clk 00:03:34]}
{[%emt 00:01:24]} 23. Bxe5 {[%clk 00:07:06]} {[%emt 00:00:04]} Kf8 {[%clk
00:02:22]} {[%emt 00:01:12]} 24. Bxd6+ {[%clk 00:06:46]} {[%emt 00:00:19]} Qxd6
{[%clk 00:02:21]} {[%emt 00:00:02]} 25. Nf6 {[%clk 00:06:38]} {[%emt 00:00:08]}
Qe5 {[%clk 00:01:50]} {[%emt 00:00:31]} 26. Rd8+ {[%clk 00:06:03]} {[%emt
00:00:34]} Ke7 {[%clk 00:01:29]} {[%emt 00:00:22]} 27. Re1 {[%clk 00:05:59]}
{[%emt 00:00:04]} Qxe1+ {[%clk 00:01:21]} {[%emt 00:00:08]} 28. Qxe1+ {[%clk
00:05:58]} {[%emt 00:00:02]} Kxd8 {[%clk 00:01:19]} {[%emt 00:00:01]} 29. Qxa5+
{[%clk 00:05:56]} {[%emt 00:00:02]} 1-0

[Event "Božićni turnir u VaraždinskimToplicama 26.12.2025."]
[Site "Varazdinske Toplice, Croatia"]
[Date "2025.12.26"]
[Round "2.2"]
[White "Jarnjak, Zlatko"]
[Black "Petrus, Adrian"]
[Result "0-1"]
[TimeControl "10"]
[WhiteFideId "79305938"]
[BlackFideId "14573652"]
[WhiteElo "1644"]
[BlackElo "1636"]

1. d4 {[%clk 00:09:58]} Nf6 {[%clk 00:09:59]} {[%emt 00:00:02]} 2. Nf3 {[%clk
00:09:55]} {[%emt 00:00:03]} d5 {[%clk 00:09:57]} {[%emt 00:00:02]} 3. e3
{[%clk 00:09:48]} {[%emt 00:00:07]} c5 {[%clk 00:09:38]} {[%emt 00:00:19]} 4.
b3 {[%clk 00:09:45]} {[%emt 00:00:03]} Nc6 {[%clk 00:09:35]} {[%emt 00:00:04]}
5. Bb2 {[%clk 00:09:39]} {[%emt 00:00:04]} Bg4 {[%clk 00:09:33]} {[%emt
00:00:03]} 6. Nbd2 {[%clk 00:09:25]} {[%emt 00:00:14]} e6 {[%clk 00:09:28]}
{[%emt 00:00:06]} 7. h3 {[%clk 00:09:10]} {[%emt 00:00:14]} Bh5 {[%clk
00:09:21]} {[%emt 00:00:07]} 8. g4 {[%clk 00:08:55]} {[%emt 00:00:14]} Bg6
{[%clk 00:09:20]} {[%emt 00:00:02]} 9. Bb5 {[%clk 00:08:38]} {[%emt 00:00:17]}
Nd7 {[%clk 00:09:01]} {[%emt 00:00:19]} 10. h4 {[%clk 00:08:13]} {[%emt
00:00:25]} f6 {[%clk 00:08:37]} {[%emt 00:00:25]} 11. dxc5 {[%clk 00:06:48]}
{[%emt 00:01:25]} Qa5 {[%clk 00:08:07]} {[%emt 00:00:29]} 12. Bxc6 {[%clk
00:05:23]} {[%emt 00:01:25]} bxc6 {[%clk 00:08:06]} {[%emt 00:00:02]} 13. Nd4
{[%clk 00:04:27]} {[%emt 00:00:56]} e5 {[%clk 00:08:05]} {[%emt 00:00:01]} 14.
h5 {[%clk 00:03:45]} {[%emt 00:00:41]} Bf7 {[%clk 00:07:30]} {[%emt 00:00:35]}
15. Nf5 {[%clk 00:03:26]} {[%emt 00:00:18]} Nxc5 {[%clk 00:06:19]} {[%emt
00:01:11]} 16. O-O {[%clk 00:03:18]} {[%emt 00:00:09]} g6 {[%clk 00:06:00]}
{[%emt 00:00:19]} 17. Ng3 {[%clk 00:03:05]} {[%emt 00:00:12]} gxh5 {[%clk
00:05:47]} {[%emt 00:00:15]} 18. c4 {[%clk 00:02:42]} {[%emt 00:00:22]} Nd3
{[%clk 00:05:24]} {[%emt 00:00:22]} 19. cxd5 {[%clk 00:02:21]} {[%emt
00:00:22]} cxd5 {[%clk 00:04:54]} {[%emt 00:00:30]} 20. Qf3 {[%clk 00:01:58]}
{[%emt 00:00:22]} Be7 {[%clk 00:04:15]} {[%emt 00:00:40]} 21. Nc4 {[%clk
00:01:39]} {[%emt 00:00:19]} Qc7 {[%clk 00:03:48]} {[%emt 00:00:27]} 22. Nf5
{[%clk 00:01:11]} {[%emt 00:00:28]} hxg4 {[%clk 00:03:31]} {[%emt 00:00:18]} 23.
Qe2 {[%clk 00:00:19]} {[%emt 00:00:52]} dxc4 {[%clk 00:03:23]} {[%emt
00:00:08]} 24. Nxe7 {[%clk 00:00:15]} {[%emt 00:00:04]} Qxe7 {[%clk 00:03:15]}
{[%emt 00:00:07]} 25. bxc4 {[%clk 00:00:12]} {[%emt 00:00:04]} O-O-O {[%clk
00:03:05]} {[%emt 00:00:09]} 26. c5 {[%clk 00:00:06]} {[%emt 00:00:06]} Be6
{[%clk 00:02:51]} {[%emt 00:00:14]} 27. Rfd1 {[%clk 00:00:05]} {[%emt
00:00:01]} Nxb2 {[%clk 00:02:47]} {[%emt 00:00:05]} 28. Qa6+ {[%clk 00:00:03]}
{[%emt 00:00:01]} Kb8 {[%clk 00:02:42]} {[%emt 00:00:05]} 29. Rab1 {[%clk
00:00:01]} {[%emt 00:00:02]} Ka8 {[%clk 00:02:38]} {[%emt 00:00:02]} 0-1

[Event "Božićni turnir u VaraždinskimToplicama 26.12.2025."]
[Site "Varazdinske Toplice, Croatia"]
[Date "2025.12.26"]
[Round "2.3"]
[White "Vidovic, Sasa"]
[Black "Novak, Milan"]
[Result "1-0"]
[TimeControl "10"]
[WhiteFideId "14505010"]
[BlackFideId "14532409"]
[WhiteElo "2202"]
[BlackElo "1853"]

1. d4 {[%clk 00:09:58]} {[%emt 00:00:02]} Nf6 {[%clk 00:09:57]} {[%emt
00:00:03]} 2. Bg5 {[%clk 00:09:56]} {[%emt 00:00:01]} d5 {[%clk 00:09:49]}
{[%emt 00:00:08]} 3. Nf3 {[%clk 00:09:49]} {[%emt 00:00:07]} e6 {[%clk
00:09:43]} {[%emt 00:00:06]} 4. e3 {[%clk 00:09:48]} {[%emt 00:00:02]} Be7
{[%clk 00:09:41]} {[%emt 00:00:01]} 5. Bd3 {[%clk 00:09:47]} {[%emt 00:00:02]}
c5 {[%clk 00:09:32]} {[%emt 00:00:08]} 6. c3 {[%clk 00:09:45]} {[%emt
00:00:02]} Nc6 {[%clk 00:09:30]} {[%emt 00:00:02]} 7. Nbd2 {[%clk 00:09:44]}
{[%emt 00:00:01]} Qc7 {[%clk 00:09:18]} {[%emt 00:00:12]} 8. Bh4 {[%clk
00:09:28]} {[%emt 00:00:16]} O-O {[%clk 00:09:07]} {[%emt 00:00:12]} 9. Bg3
{[%clk 00:09:27]} {[%emt 00:00:01]} Bd6 {[%clk 00:08:58]} {[%emt 00:00:08]} 10.
dxc5 {[%clk 00:09:24]} {[%emt 00:00:03]} Bxg3 {[%clk 00:08:52]} {[%emt
00:00:06]} 11. hxg3 {[%clk 00:09:23]} a5 {[%clk 00:08:49]} {[%emt 00:00:04]} 12.
Nd4 {[%clk 00:09:03]} {[%emt 00:00:20]} e5 {[%clk 00:08:30]} {[%emt 00:00:18]}
13. Bxh7+ {[%clk 00:08:44]} {[%emt 00:00:19]} Nxh7 {[%clk 00:08:24]} {[%emt
00:00:07]} 14. Qh5 {[%clk 00:08:42]} {[%emt 00:00:02]} Re8 {[%clk 00:07:47]}
{[%emt 00:00:36]} 15. Qxh7+ {[%clk 00:08:36]} {[%emt 00:00:07]} Kf8 {[%clk
00:07:47]} 16. Nb5 {[%clk 00:08:26]} {[%emt 00:00:10]} Qd7 {[%clk 00:07:14]}
{[%emt 00:00:32]} 17. Nd6 {[%clk 00:08:22]} {[%emt 00:00:05]} Rd8 {[%clk
00:06:58]} {[%emt 00:00:14]} 18. Qh8+ {[%clk 00:08:10]} {[%emt 00:00:13]} Ke7
{[%clk 00:06:57]} {[%emt 00:00:02]} 19. Qxg7 {[%clk 00:08:08]} {[%emt
00:00:02]} Qe6 {[%clk 00:06:44]} {[%emt 00:00:10]} 20. Rh6 {[%clk 00:08:03]}
{[%emt 00:00:08]} 1-0

[Event "Božićni turnir u VaraždinskimToplicama 26.12.2025."]
[Site "Varazdinske Toplice, Croatia"]
[Date "2025.12.26"]
[Round "2.4"]
[White "Fodor, Ivan"]
[Black "Radic, Goran"]
[Result "0-1"]
[TimeControl "10"]
[WhiteFideId "14509890"]
[BlackFideId "14533995"]
[WhiteElo "1855"]
[BlackElo "2051"]

1. e4 {[%clk 00:09:57]} {[%emt 00:00:02]} d6 {[%clk 00:09:58]} {[%emt
00:00:02]} 2. Nf3 {[%clk 00:09:55]} {[%emt 00:00:02]} e5 {[%clk 00:09:53]}
{[%emt 00:00:05]} 3. c3 {[%clk 00:09:53]} {[%emt 00:00:02]} Nd7 {[%clk
00:09:52]} {[%emt 00:00:01]} 4. Be2 {[%clk 00:09:48]} {[%emt 00:00:05]} Ngf6
{[%clk 00:09:50]} {[%emt 00:00:01]} 5. d3 {[%clk 00:09:47]} {[%emt 00:00:01]}
Be7 {[%clk 00:09:48]} {[%emt 00:00:03]} 6. O-O {[%clk 00:09:45]} {[%emt
00:00:02]} O-O {[%clk 00:09:45]} {[%emt 00:00:02]} 7. h3 {[%clk 00:09:45]} c6
{[%clk 00:09:43]} {[%emt 00:00:03]} 8. Nh2 {[%clk 00:09:34]} {[%emt 00:00:11]}
Qc7 {[%clk 00:09:38]} {[%emt 00:00:05]} 9. f4 {[%clk 00:09:28]} {[%emt
00:00:06]} d5 {[%clk 00:09:22]} {[%emt 00:00:16]} 10. fxe5 {[%clk 00:09:09]}
{[%emt 00:00:19]} Nxe5 {[%clk 00:08:51]} {[%emt 00:00:31]} 11. d4 {[%clk
00:09:07]} {[%emt 00:00:03]} Qb6 {[%clk 00:08:34]} {[%emt 00:00:17]} 12. exd5
{[%clk 00:08:45]} {[%emt 00:00:22]} cxd5 {[%clk 00:08:05]} {[%emt 00:00:29]} 13.
Qb3 {[%clk 00:07:59]} {[%emt 00:00:45]} Qxb3 {[%clk 00:07:49]} {[%emt
00:00:16]} 14. axb3 {[%clk 00:07:58]} Nc6 {[%clk 00:07:34]} {[%emt 00:00:16]}
15. Na3 {[%clk 00:07:45]} {[%emt 00:00:12]} a6 {[%clk 00:07:21]} {[%emt
00:00:13]} 16. Bf4 {[%clk 00:07:24]} {[%emt 00:00:21]} Re8 {[%clk 00:07:18]}
{[%emt 00:00:02]} 17. Bd3 {[%clk 00:07:03]} {[%emt 00:00:22]} Be6 {[%clk
00:07:13]} {[%emt 00:00:06]} 18. Nc2 {[%clk 00:06:51]} {[%emt 00:00:11]} Rad8
{[%clk 00:06:54]} {[%emt 00:00:18]} 19. Nf3 {[%clk 00:06:35]} {[%emt 00:00:16]}
h6 {[%clk 00:06:40]} {[%emt 00:00:15]} 20. b4 {[%clk 00:06:07]} {[%emt
00:00:28]} Ne4 {[%clk 00:06:29]} {[%emt 00:00:11]} 21. b5 {[%clk 00:05:32]}
{[%emt 00:00:34]} axb5 {[%clk 00:06:28]} {[%emt 00:00:02]} 22. Bxb5 {[%clk
00:05:31]} {[%emt 00:00:01]} Ra8 {[%clk 00:06:28]} {[%emt 00:00:01]} 23. Ne5
{[%clk 00:04:37]} {[%emt 00:00:53]} Rec8 {[%clk 00:06:26]} {[%emt 00:00:02]} 24.
Rxa8 {[%clk 00:04:28]} {[%emt 00:00:10]} Rxa8 {[%clk 00:06:24]} {[%emt
00:00:01]} 25. Bxc6 {[%clk 00:03:58]} {[%emt 00:00:29]} bxc6 {[%clk 00:06:23]}
{[%emt 00:00:02]} 26. Nxc6 {[%clk 00:03:24]} {[%emt 00:00:01]} Bf8 {[%clk
00:06:21]} {[%emt 00:00:35]} 27. Ra1 {[%clk 00:03:07]} {[%emt 00:00:17]} Rc8
{[%clk 00:06:12]} {[%emt 00:00:09]} 28. N2b4 {[%clk 00:02:57]} {[%emt
00:00:10]} g5 {[%clk 00:06:01]} {[%emt 00:00:11]} 29. Bc1 {[%clk 00:02:43]}
{[%emt 00:00:14]} Bd6 {[%clk 00:05:53]} {[%emt 00:00:08]} 30. g4 {[%clk
00:02:33]} {[%emt 00:00:10]} h5 {[%clk 00:05:50]} {[%emt 00:00:03]} 31. gxh5
{[%clk 00:02:13]} {[%emt 00:00:20]} Bxh3 {[%clk 00:05:49]} {[%emt 00:00:01]} 32.
Na7 {[%clk 00:01:52]} {[%emt 00:00:20]} Re8 {[%clk 00:05:17]} {[%emt 00:00:32]}
33. Nxd5 {[%clk 00:01:46]} {[%emt 00:00:06]} Kg7 {[%clk 00:05:06]} {[%emt
00:00:12]} 34. Nb5 {[%clk 00:01:26]} {[%emt 00:00:19]} Bg3 {[%clk 00:05:04]}
{[%emt 00:00:02]} 35. Be3 {[%clk 00:01:17]} {[%emt 00:00:09]} f5 {[%clk
00:04:59]} {[%emt 00:00:06]} 36. Ra7+ {[%clk 00:01:11]} {[%emt 00:00:05]} Kh6
{[%clk 00:04:55]} {[%emt 00:00:04]} 37. Ra6+ {[%clk 00:01:04]} {[%emt
00:00:08]} Kxh5 {[%clk 00:04:52]} {[%emt 00:00:03]} 38. Nbc7 {[%clk 00:00:39]}
{[%emt 00:00:25]} Rb8 {[%clk 00:04:35]} {[%emt 00:00:17]} 39. b4 {[%clk
00:00:36]} {[%emt 00:00:02]} f4 {[%clk 00:04:32]} {[%emt 00:00:04]} 40. Bc1
{[%clk 00:00:28]} {[%emt 00:00:07]} Kg4 {[%clk 00:04:17]} {[%emt 00:00:14]} 41.
Ne6 {[%clk 00:00:24]} {[%emt 00:00:04]} Kf3 {[%clk 00:04:12]} {[%emt 00:00:06]}
42. Ra3 {[%clk 00:00:16]} {[%emt 00:00:08]} Bf2+ {[%clk 00:04:03]} {[%emt
00:00:10]} 43. Kh2 {[%clk 00:00:14]} {[%emt 00:00:02]} Bxe6 {[%clk 00:03:58]}
{[%emt 00:00:06]} 44. c4+ {[%clk 00:00:01]} {[%emt 00:00:13]} Kg4 {[%clk
00:03:52]} {[%emt 00:00:05]} 45. Kg2 {[%emt 00:00:05]} 0-1